bitfinex/quotes_ETHUSD_20250715
["timestamp","ask_amount","ask_price","bid_price","bid_amount"]
[1752621714496,8.52105711,3127.1,3126.6,3.4974176]
[1752621714702,8.52105711,3127.1,3126.6,0.2991]
[1752621714703,9.69292865,3127.1,3126.6,0.2991]
[1752621715604,1.33107154,3127.1,3126.7,3.65691284]
[1752621715899,5.164,3127.0,3126.6,3.49738533]
[1752621716059,5.164,3127.0,3126.6,3.95611012]
[1752621716398,5.164,3127.0,3126.7,3.81613524]
[1752621716599,8.36195931,3127.0,3126.7,0.1592]
[1752621716803,3.19805558,3126.9,3126.3,3.65730453]
[1752621716994,8.806769,3127.0,3126.5,0.1592]
[1752621716995,8.80678669,3127.0,3126.5,0.1592]
[1752621717499,3.19819019,3126.8,3126.5,0.1592]
[1752621717714,5.6088,3127.0,3126.5,0.1592]
[1752621718022,0.1592,3127.3,3126.7,0.1592]
[1752621718223,5.163,3127.2,3126.9,3.19805558]
[1752621718382,5.163,3127.2,3126.8,0.2991]
[1752621718582,8.36081,3127.2,3126.8,0.2991]
[1752621719125,0.8586,3126.9,3126.7,0.1592]
[1752621719293,3.19852352,3126.5,3126.1,0.29910001]
[1752621719481,5.6078,3126.4,3126.1,1e-08]
[1752621719685,3.19877167,3126.2,3126.1,1e-08]
[1752621720083,3.64357167,3126.2,3126.1,1e-08]
[1752621720294,5.73159577,3126.2,3126.1,1e-08]
[1752621720523,35.73159577,3126.2,3126.1,1e-08]
[1752621720826,5.73159577,3126.2,3126.1,1e-08]
[1752621721012,5.28679577,3126.2,3126.1,1e-08]
[1752621721212,4.39929577,3126.2,3126.1,1e-08]
[1752621721400,8.36077167,3126.2,3126.1,1e-08]
[1752621722695,8.80557167,3126.2,3126.1,1e-08]
[1752621723908,43.18537167,3126.2,3126.1,1e-08]
[1752621726242,13.18537167,3126.2,3126.1,1e-08]
[1752621726458,14.82277577,3126.2,3126.1,1e-08]
[1752621726632,8.35977167,3126.2,3126.1,1e-08]
[1752621726819,8.80457167,3126.2,3126.1,1e-08]
[1752621727018,3.64357167,3126.2,3126.1,1e-08]
[1752621727229,8.80457167,3126.2,3126.1,1e-08]
[1752621727434,10.00489577,3126.2,3126.1,1e-08]
[1752621727949,3.19877167,3126.2,3126.1,1e-08]
[1752621728121,8.35977167,3126.2,3126.1,1e-08]
[1752621729539,3.19877167,3126.2,3126.1,1e-08]
[1752621729748,8.35977167,3126.2,3126.1,1e-08]
[1752621730503,3.19877167,3126.2,3126.1,1e-08]
[1752621730707,8.35977167,3126.2,3126.1,1e-08]
[1752621731006,8.35877167,3126.2,3126.1,1e-08]
[1752621731439,3.19877167,3126.2,3126.1,1e-08]
[1752621731642,8.35877167,3126.2,3126.1,1e-08]
[1752621733584,3.1986333,3126.4,3126.1,0.45870001]
[1752621733737,0.1592,3126.9,3126.2,0.4587]
[1752621734073,8.35815844,3126.8,3126.4,0.2991]
[1752621734274,0.1612,3127.1,3126.5,0.4587]
[1752621734473,0.1612,3127.1,3126.5,0.6179]
[1752621734648,5.159,3127.0,3126.6,0.4587]
[1752621734864,5.159,3127.0,3126.4,0.2991]
[1752621734865,3.19835129,3126.7,3126.4,0.2991]
[1752621735155,5.159,3126.7,3126.4,0.1592]
[1752621735334,3.19841911,3126.6,3126.4,0.587]
[1752621735730,5.159,3126.7,3126.4,0.587]
[1752621736044,8.35730532,3126.7,3126.5,0.4278]
[1752621736379,3.19841036,3126.6,3126.4,0.1592]
[1752621736579,5.159,3126.7,3126.4,0.1592]
[1752621736941,8.35730033,3126.7,3126.4,0.1592]
[1752621737341,3.19837734,3126.6,3126.4,0.1592]
[1752621737545,3.19846473,3126.5,3126.4,0.1592]
[1752621737806,3.19846473,3126.5,3126.1,0.72690001]
[1752621737807,3.19877167,3126.2,3126.1,0.29910001]
[1752621738082,3.19877167,3126.2,3126.1,1e-08]
[1752621738648,8.35677167,3126.2,3126.1,1e-08]
[1752621739776,9.65027167,3126.2,3126.1,1e-08]
[1752621740449,10.20027167,3126.2,3126.1,1e-08]
[1752621740651,11.55608597,3126.2,3126.1,1e-08]
[1752621742061,11.00608597,3126.2,3126.1,1e-08]
[1752621744578,11.55608597,3126.2,3126.1,1e-08]
[1752621744944,44.55608597,3126.2,3126.1,1e-08]
[1752621746170,14.55408597,3126.2,3126.1,1e-08]
[1752621746399,14.00408597,3126.2,3126.1,1e-08]
[1752621746598,8.84808597,3126.2,3126.1,1e-08]
[1752621746800,14.00408597,3126.2,3126.1,1e-08]
[1752621747098,14.55408597,3126.2,3126.1,1e-08]
[1752621748373,14.00408597,3126.2,3126.1,1e-08]
[1752621749007,3.19887399,3126.1,3126.0,1e-08]
[1752621749166,39.43489478,3126.1,3126.0,1e-08]
[1752621749568,39.86729478,3126.1,3126.0,1e-08]
[1752621750665,45.02229478,3126.1,3126.0,1e-08]
[1752621750865,15.02229478,3126.1,3126.0,1e-08]
[1752621751315,9.31729478,3126.1,3126.0,1e-08]
[1752621751468,14.03989478,3126.1,3126.0,1e-08]
[1752621753607,8.88489478,3126.1,3126.0,1e-08]
[1752621753812,11.35287399,3126.1,3126.0,1e-08]
[1752621754012,3.19887399,3126.1,3126.0,1e-08]
[1752621754176,0.1592,3126.2,3126.0,1e-08]
[1752621754377,5.154,3126.1,3126.0,1e-08]
[1752621754598,3.35802414,3126.2,3126.0,1e-08]
[1752621754796,5.153,3126.1,3126.0,0.42780001]
[1752621755011,5.153,3126.1,3126.0,1e-08]
[1752621755591,5.153,3126.1,3126.0,0.42780001]
[1752621755792,0.002,3126.5,3126.0,0.58700001]
[1752621756004,0.002,3126.5,3126.4,3.44336704]
[1752621756209,0.002,3126.5,3126.4,3.60256704]
[1752621756609,0.002,3126.5,3126.4,0.8318]
[1752621756793,0.002,3126.5,3126.4,4.03036704]
[1752621756994,0.002,3126.5,3126.4,4.75646717]
[1752621758017,0.002,3126.5,3126.4,4.78845284]
[1752621761035,0.002,3126.5,3126.4,8.33845284]
[1752621761234,0.002,3126.5,3126.4,8.30646717]
[1752621761626,0.002,3126.5,3126.4,13.45646717]
[1752621763503,0.002,3126.5,3126.4,7.75646717]
[1752621763731,0.002,3126.5,3126.4,7.03036704]
[1752621764738,0.002,3126.5,3126.4,7.58036704]
[1752621768606,1e-08,3126.5,3126.4,7.58036704]
[1752621769249,1e-08,3126.5,3126.4,9.49836704]
[1752621771651,1e-08,3126.5,3126.4,9.65378683]
[1752621772148,1e-08,3126.5,3126.4,11.2985125]
[1752621772446,0.002,3127.1,3127.0,3.7479533]
[1752621772646,0.002,3127.1,3127.0,9.16973283]
[1752621772950,0.002,3127.1,3127.0,12.7537533]
[1752621773124,0.002,3127.1,3127.0,15.24119466]
[1752621774445,0.002,3127.6,3127.5,3.19744204]
[1752621774649,0.002,3127.6,3127.5,8.34144204]
[1752621774952,0.002,3127.6,3127.5,12.18834204]
[1752621777110,0.002,3127.6,3127.5,12.73834204]
[1752621777348,0.002,3127.6,3127.5,15.03239113]
[1752621777515,0.002,3127.6,3127.5,16.95039113]
[1752621778346,0.002,3127.6,3127.5,12.046255]
[1752621778650,0.002,3127.6,3127.5,17.188255]
[1752621778954,1e-08,3127.8,3127.7,5.89613758]
[1752621779245,0.002,3128.4,3128.3,3.19662436]
[1752621779557,0.002,3128.4,3128.3,11.56852436]
[1752621779852,0.002,3128.4,3128.3,12.18452436]
[1752621780052,0.002,3128.4,3128.3,7.04352436]
[1752621780352,0.002,3128.4,3128.3,5.2992]
[1752621781051,3.64222218,3128.4,3128.3,0.1592]
[1752621781455,0.4457,3128.4,3128.2,0.1592]
[1752621781748,0.4437,3128.3,3128.2,0.1592]
[1752621781975,0.002,3128.4,3128.2,0.1592]
[1752621782130,0.002,3128.4,3128.3,0.03196624]
[1752621782336,0.002,3128.4,3128.3,0.19116624]
[1752621782733,0.4457,3128.4,3128.3,0.1592]
[1752621783141,0.81011883,3128.4,3128.0,5.139]
[1752621783344,1.2385,3128.3,3128.0,0.1592]
[1752621783529,3.19682874,3128.1,3128.0,0.1592]
[1752621784069,0.4437,3128.1,3128.0,0.1592]
[1752621784368,3.64052874,3128.1,3128.0,0.1592]
[1752621784824,3.19713865,3127.8,3127.3,3.0]
[1752621785024,3.19707783,3127.9,3127.7,0.1592]
[1752621785774,0.4437,3127.8,3127.7,0.1592]
[1752621786456,0.7948,3128.3,3127.9,3.19694597]
[1752621786656,0.7948,3128.3,3128.1,0.1592]
[1752621786857,1.2385,3128.3,3128.1,0.1592]
[1752621787586,1.2385,3128.3,3127.4,3.19750089]
[1752621787587,3.19695225,3128.0,3127.4,3.19750089]
[1752621787875,0.7948,3128.3,3127.7,0.1592]
[1752621787876,3.19710059,3127.9,3127.7,0.1592]
[1752621788027,0.4437,3127.8,3127.7,0.1592]
[1752621790443,3.1968422,3128.1,3127.7,0.1592]
[1752621790444,3.6405422,3128.1,3127.7,0.1592]
[1752621790652,3.19678862,3128.2,3127.7,0.1592]
[1752621791076,0.4437,3128.1,3127.7,0.1592]
[1752621791373,0.4437,3128.0,3127.7,0.1592]
[1752621791730,0.4437,3128.0,3127.8,0.005473]
[1752621791937,0.4437,3127.9,3127.8,0.005473]
[1752621792539,4.45783315,3127.9,3127.8,0.005473]
[1752621792781,4.61703315,3127.9,3127.8,0.005473]
[1752621793762,9.75203315,3127.9,3127.8,0.005473]
[1752621794371,4.61703315,3127.9,3127.8,0.005473]
[1752621794772,3.19690938,3128.1,3127.8,0.005473]
[1752621795071,0.1592,3128.2,3127.9,3.19696506]
[1752621795376,1.253,3128.3,3128.0,0.47889651]
[1752621795377,0.8093,3128.3,3128.0,0.47889651]
[1752621795539,0.8093,3128.3,3128.0,0.1592]
[1752621795935,0.002,3128.4,3128.3,3.19662436]
[1752621796175,0.002,3128.4,3128.3,14.22758613]
[1752621796350,0.002,3128.4,3128.3,14.19561989]
[1752621797275,0.002,3128.4,3128.3,8.59551989]
[1752621797577,0.002,3128.4,3128.3,8.134]
[1752621797782,0.002,3128.4,3128.3,11.33062436]
[1752621798136,0.002,3128.4,3128.3,8.134]
[1752621798338,0.002,3128.4,3128.3,11.33062436]
[1752621798859,0.002,3128.6,3128.4,0.003472]
[1752621799064,0.4408,3128.5,3128.4,0.003472]
[1752621799268,3.63722,3128.5,3128.4,0.003472]
[1752621799469,1.97184931,3128.5,3128.4,0.003472]
[1752621799778,5.16826931,3128.5,3128.4,0.003472]
[1752621800784,35.16826931,3128.5,3128.4,0.003472]
[1752621800966,35.71826931,3128.5,3128.4,0.003472]
[1752621801171,4.04473758,3127.7,3127.6,0.001]
[1752621801368,4.44921134,3127.7,3127.6,0.001]
[1752621801688,4.89001134,3127.7,3127.6,0.001]
[1752621804895,8.44001134,3127.7,3127.6,0.001]
[1752621805202,38.44001134,3127.7,3127.6,0.001]
[1752621806158,43.02001134,3127.7,3127.6,0.001]
[1752621807262,43.02101134,3127.7,3127.6,0.001]
[1752621807903,43.57101134,3127.7,3127.6,1e-08]
[1752621808314,43.57101134,3127.7,3126.8,0.001]
[1752621808315,3.19805558,3126.9,3126.8,0.001]
[1752621808612,9.47826114,3126.9,3126.8,0.001]
[1752621808757,9.91906114,3126.9,3126.8,0.001]
[1752621808959,42.91906114,3126.9,3126.8,1e-08]
[1752621809299,43.46906114,3126.9,3126.8,1e-08]
[1752621811369,43.46906114,3126.9,3126.0,1e-08]
[1752621811370,3.19887399,3126.1,3126.0,1e-08]
[1752621811575,9.14117399,3126.1,3126.0,1e-08]
[1752621811796,9.58197399,3126.1,3126.0,1e-08]
[1752621812317,12.58197399,3126.1,3126.0,1e-08]
[1752621812515,13.13197399,3126.1,3126.0,1e-08]
[1752621812825,43.8155233,3126.1,3126.0,1e-08]
[1752621814087,4.06649521,3125.2,3125.1,0.001]
[1752621814274,9.19649521,3125.2,3125.1,0.001]
[1752621814480,9.63729521,3125.2,3125.1,0.001]
[1752621814683,3.55,3126.0,3125.1,0.001]
[1752621814684,1.3075,3125.6,3125.1,0.001]
[1752621814903,3.19979521,3125.2,3125.1,0.001]
[1752621815085,8.32879521,3125.2,3125.1,0.001]
[1752621816002,5.129,3125.2,3125.1,0.001]
[1752621816301,8.76959521,3125.2,3125.1,0.001]
[1752621816468,10.30240443,3125.2,3125.1,0.001]
[1752621816882,9.86260443,3125.2,3125.1,0.001]
[1752621817116,3.19979521,3125.2,3125.1,0.001]
[1752621817416,5.129,3125.2,3125.1,0.001]
[1752621817615,8.32879521,3125.2,3125.1,0.001]
[1752621818906,5.129,3125.2,3125.1,0.001]
[1752621819236,3.35879176,3125.4,3125.1,0.001]
[1752621819528,5.129,3125.3,3125.1,0.001]
[1752621819675,3.35879176,3125.4,3125.1,0.001]
[1752621819881,3.19947703,3125.6,3125.1,0.001]
[1752621820132,3.19972287,3125.3,3125.1,0.001]
[1752621820628,8.32879521,3125.2,3125.1,0.001]
[1752621821624,8.76959521,3125.2,3125.1,0.001]
[1752621822329,41.76959521,3125.2,3125.1,0.001]
[1752621822484,46.36366848,3125.2,3125.1,0.001]
[1752621822882,40.68466848,3125.2,3125.1,0.001]
[1752621823082,45.81266848,3125.2,3125.1,0.001]
[1752621823526,15.81266848,3125.2,3125.1,0.001]
[1752621823725,7.48809521,3125.2,3125.1,0.001]
[1752621823898,8.32779521,3125.2,3125.1,0.001]
[1752621824341,12.61609521,3125.2,3125.1,0.001]
[1752621829133,13.16609521,3125.2,3125.1,0.001]
[1752621829328,43.16609521,3125.2,3125.1,0.001]
[1752621829578,46.36266848,3125.2,3125.1,0.001]
[1752621830471,0.55,3125.0,3124.7,1e-08]
[1752621830631,6.20020481,3124.8,3124.7,1e-08]
[1752621830942,8.32620481,3124.8,3124.7,1e-08]
[1752621831424,0.8475,3125.2,3124.7,1e-08]
[1752621831629,3.19978676,3125.3,3124.7,3.63273572]
[1752621831836,3.35898676,3125.3,3124.8,0.4325]
[1752621832036,5.126,3125.2,3124.9,0.4325]
[1752621832241,5.126,3125.1,3125.0,0.4325]
[1752621832454,5.126,3125.1,3125.0,3.6325]
[1752621832650,1.2821,3126.2,3125.1,0.2303]
[1752621832975,3.19852029,3126.5,3125.1,0.2303]
[1752621832976,0.1592,3126.0,3125.5,0.1592]
[1752621833172,3.19937434,3125.7,3125.5,0.1592]
[1752621833373,5.126,3125.6,3125.5,0.1592]
[1752621833677,8.32538571,3125.6,3125.5,0.1592]
[1752621835682,6.75185898,3125.6,3124.8,0.2314]
[1752621835874,3.19995625,3125.1,3124.9,0.16]
[1752621836069,8.325,3125.0,3124.8,0.2314]
[1752621836369,3.2001024,3124.9,3124.8,0.2314]
[1752621836561,3.2001024,3124.9,3124.8,0.001]
[1752621839046,8.3231024,3124.9,3124.8,0.001]
[1752621841152,9.6015024,3124.9,3124.8,0.001]
[1752621841354,44.21764236,3124.9,3124.8,0.001]
[1752621842185,12.93924236,3124.9,3124.8,0.001]
[1752621842693,8.3231024,3124.9,3124.8,0.001]
[1752621843063,8.7965024,3124.9,3124.8,0.001]
[1752621843269,11.7965024,3124.9,3124.8,0.001]
[1752621843455,5.122,3124.9,3124.8,0.001]
[1752621843659,8.3221024,3124.9,3124.8,0.001]
[1752621844197,3.19996634,3125.1,3124.8,0.001]
[1752621844367,5.122,3125.0,3124.8,0.6639]
[1752621844567,5.122,3124.9,3124.8,0.6639]
[1752621845758,5.122,3124.9,3124.8,0.001]
[1752621845962,3.19967149,3125.4,3124.8,3.63366175]
[1752621846161,3.19965187,3125.4,3124.9,3.20008763]
[1752621846363,5.121,3125.3,3124.9,0.03200102]
[1752621846563,5.121,3125.3,3124.9,0.46450102]
[1752621847818,5.121,3125.3,3124.8,0.001]
[1752621847819,3.2,3125.0,3124.8,0.001]
[1752621847961,8.3211024,3124.9,3124.8,0.001]
[1752621848811,5.121,3124.9,3124.8,0.001]
[1752621848967,8.3211024,3124.9,3124.8,0.001]
[1752621849568,5.121,3124.9,3124.8,0.001]
[1752621849769,5.12,3124.9,3124.8,0.4335]
[1752621850365,5.12,3124.9,3124.8,0.001]
[1752621851426,8.3201024,3124.9,3124.8,0.001]
[1752621851602,6.27201036,3124.9,3124.8,0.001]
[1752621851806,5.12,3124.9,3124.8,0.001]
[1752621852006,8.3201024,3124.9,3124.8,0.001]
[1752621852408,8.3191024,3124.9,3124.8,0.001]
[1752621857703,8.7869024,3124.9,3124.8,0.001]
[1752621857898,8.7889024,3124.9,3124.8,0.001]
[1752621858099,10.00379307,3124.9,3124.8,0.001]
[1752621858715,4.41699307,3124.9,3124.8,0.001]
[1752621859047,5.119,3124.9,3124.8,0.001]
[1752621859249,0.002,3124.9,3124.8,0.001]
[1752621859454,0.002,3124.9,3124.8,0.435]
[1752621859625,0.002,3124.9,3124.8,3.63520481]
[1752621859945,0.002,3124.9,3124.8,13.09083928]
[1752621860149,0.002,3124.9,3124.8,14.72709159]
[1752621860517,0.002,3124.9,3124.8,14.95749159]
[1752621861682,0.002,3124.9,3124.8,17.95749159]
[1752621862768,0.002,3124.9,3124.8,18.20132975]
[1752621862969,0.002,3124.9,3124.8,8.53385916]
[1752621863155,0.002,3124.9,3124.8,13.28923724]
[1752621863364,0.002,3124.9,3124.8,16.28923724]
[1752621863590,0.002,3126.0,3125.9,3.19907866]
[1752621863937,0.002,3126.0,3125.9,3.79227866]
[1752621864136,0.002,3126.0,3125.9,8.07414178]
[1752621864376,0.002,3126.0,3125.9,8.042151]
[1752621864576,0.002,3126.0,3125.9,8.592151]
[1752621865173,0.002,3127.3,3126.3,0.55]
[1752621865335,0.002,3127.3,3126.9,3.19798002]
[1752621865542,0.002,3127.3,3127.1,0.1592]
[1752621867489,3.19774878,3127.2,3127.1,0.1592]
[1752621867799,3.1979145,3127.1,3127.0,0.1592]
[1752621868439,3.1977803,3127.2,3127.0,0.1592]
[1752621868788,0.002,3127.3,3127.0,0.1592]
[1752621869187,3.19780925,3127.2,3127.0,0.1592]
[1752621869482,3.19785104,3127.1,3127.0,0.1592]
[1752621869687,3.19779153,3127.2,3127.0,0.1592]
[1752621870123,3.19785104,3127.1,3126.8,5.112]
[1752621870329,3.19785104,3127.1,3126.7,0.1592]
[1752621870330,0.4678,3127.0,3126.7,0.1592]
[1752621870494,3.19824266,3126.8,3126.7,0.1592]
[1752621871024,3.19842464,3126.6,3126.1,3.2308]
[1752621871211,3.19846701,3126.5,3126.3,0.1592]
[1752621871419,3.19836243,3126.6,3126.3,0.1592]
[1752621871590,3.19847265,3126.5,3126.3,0.1592]
[1752621872114,3.19838282,3126.6,3126.3,0.1592]
[1752621872317,3.3573796,3126.8,3126.3,0.1592]
[1752621872632,3.19804747,3127.0,3126.4,3.63255287]
[1752621872839,4.05260924,3127.1,3126.5,3.23037431]
[1752621873119,3.19970456,3127.3,3127.0,0.1592]
[1752621873290,3.19785104,3127.1,3126.8,0.2308]
[1752621873492,0.002,3127.3,3126.8,0.1592]
[1752621873828,3.19964707,3127.3,3126.8,0.5932]
[1752621874210,3.19775716,3127.2,3126.8,0.62518157]
[1752621874523,4.32120845,3127.2,3126.8,0.1592]
[1752621874724,0.65565129,3127.2,3126.8,0.1592]
[1752621874909,3.19805558,3126.9,3126.8,0.1592]
[1752621875424,3.19805558,3126.9,3126.5,0.2308]
[1752621875720,3.19805558,3126.9,3126.7,0.1592]
[1752621875923,3.35698168,3127.2,3126.7,0.1592]
[1752621876124,3.35700067,3127.2,3126.7,0.1592]
[1752621876291,3.19780067,3127.2,3126.9,0.1592]
[1752621876931,3.1978635,3127.1,3126.9,0.1592]
[1752621877523,3.19966341,3127.3,3126.9,0.1592]
[1752621877823,3.197797,3127.2,3126.9,0.1592]
[1752621877990,3.19840645,3126.6,3126.1,0.2308]
[1752621878193,0.1592,3126.8,3126.3,0.1592]
[1752621878418,3.19856704,3126.4,3126.3,0.1592]
[1752621878923,3.19856704,3126.4,3125.9,0.1592]
[1752621878924,3.19893229,3126.1,3125.9,0.1592]
[1752621879114,0.8268,3126.8,3125.9,0.46599078]
[1752621879424,3.19851704,3126.5,3126.3,0.1592]
[1752621879590,1.62616,3126.8,3126.3,0.1592]
[1752621879591,3.19841021,3126.6,3126.3,0.1592]
[1752621879925,1.2616,3127.1,3126.3,0.434]
[1752621880115,3.19821753,3126.8,3126.5,0.1592]
[1752621880424,8.30407204,3126.9,3126.5,0.1592]
[1752621880827,3.19816754,3126.8,3126.5,0.1592]
[1752621881028,3.1982748,3126.7,3126.5,0.1592]
[1752621881227,1.61803514,3126.7,3126.1,3.19882342]
[1752621881429,1.61803514,3126.7,3126.0,9.65543243]
[1752621881430,0.4678,3126.7,3126.2,0.1592]
[1752621881619,3.19831578,3126.7,3126.2,0.1592]
[1752621881934,3.19843789,3126.6,3126.2,0.1592]
[1752621882429,0.1592,3126.8,3126.3,3.19866935]
[1752621882824,3.35745377,3126.8,3126.2,0.1592]
[1752621883006,0.1592,3126.8,3126.2,0.1592]
[1752621883358,3.19800385,3127.0,3126.4,3.19856704]
[1752621883556,3.19809863,3126.9,3126.5,0.1592]
[1752621883857,0.002,3127.1,3126.6,3.1983067]
[1752621884017,3.19986953,3127.1,3126.7,0.5932]
[1752621884224,3.19986953,3127.1,3126.8,5.105]
[1752621884570,0.002,3127.1,3126.8,5.105]
[1752621884758,3.19987907,3127.1,3126.7,0.1592]
[1752621885052,3.19795834,3127.0,3126.8,5.105]
[1752621885439,3.19988466,3127.1,3126.8,5.105]
[1752621885754,3.63108466,3127.1,3126.8,5.105]
[1752621886359,3.19796782,3127.0,3126.8,5.105]
[1752621886557,3.19796782,3127.0,3126.8,5.104]
[1752621887050,0.4332,3127.1,3126.7,5.2632]
[1752621887051,0.002,3127.1,3126.7,5.2632]
[1752621887255,0.4332,3127.1,3126.7,5.2632]
[1752621888055,0.002,3127.1,3126.8,9.42363243]
[1752621888258,0.002,3127.1,3126.9,3.46077351]
[1752621888468,0.002,3127.1,3127.0,3.3571533]
[1752621888674,0.002,3127.1,3127.0,0.1592]
[1752621888980,0.002,3127.1,3127.0,8.9189533]
[1752621889271,0.002,3127.1,3127.0,11.09608882]
[1752621890272,0.002,3127.1,3127.0,2.33633552]
[1752621890656,0.002,3127.1,3127.0,10.63628882]
[1752621890869,0.002,3127.1,3127.0,7.43833552]
[1752621891474,0.002,3127.1,3127.0,10.63628882]
[1752621891677,0.002,3127.1,3127.0,11.09508882]
[1752621892479,1e-08,3127.1,3127.0,14.87588882]
[1752621892656,0.002,3128.4,3127.8,3.19713409]
[1752621892855,3.19856279,3128.4,3127.9,5.101]
[1752621893055,0.4332,3128.4,3128.0,0.1592]
[1752621893581,3.19662964,3128.3,3128.0,0.1592]
[1752621894146,3.62798065,3128.2,3128.0,5.1]
[1752621894375,0.002,3128.4,3128.1,15.24670071]
[1752621894577,0.002,3128.4,3128.3,3.19662436]
[1752621894777,0.002,3128.4,3128.3,3.2285906]
[1752621895279,0.002,3128.4,3128.3,3.6873906]
[1752621897868,0.002,3128.4,3128.3,6.6873906]
[1752621898182,0.002,3128.4,3128.3,6.9196906]
[1752621898392,0.002,3128.4,3128.3,9.82387809]
[1752621898580,0.002,3128.4,3128.3,14.92187809]
[1752621900287,0.002,3128.4,3128.3,9.82387809]
[1752621900670,0.002,3128.4,3128.3,14.92087809]
[1752621901875,0.002,3128.4,3128.3,9.82387809]
[1752621902078,0.002,3128.6,3128.5,3.19642]
[1752621902277,0.002,3128.6,3128.5,19.55963618]
[1752621902508,0.002,3129.2,3128.8,3.19611352]
[1752621902809,0.002,3129.2,3129.1,12.61943953]
[1752621902979,0.002,3129.2,3129.1,17.71543953]
[1752621903311,0.002,3129.2,3129.1,18.17423953]
[1752621903514,0.002,3129.2,3129.1,20.10212418]
[1752621904374,0.002,3129.2,3129.1,20.26132418]
[1752621906532,0.002,3129.2,3129.1,20.25832418]
[1752621906908,0.002,3129.7,3129.6,3.19529652]
[1752621907107,0.002,3129.7,3129.6,17.71192895]
[1752621907314,0.002,3129.7,3129.6,20.42385725]
[1752621907487,0.002,3129.7,3129.6,19.96505725]
[1752621908516,0.002,3129.9,3129.6,17.00206073]
[1752621908714,0.002,3130.5,3130.4,3.19447993]
[1752621908942,0.002,3130.5,3130.4,17.87031236]
[1752621909394,0.002,3130.5,3130.4,16.78232179]
[1752621909627,0.002,3130.5,3130.4,11.68932179]
[1752621909825,0.4332,3130.5,3130.4,0.1592]
[1752621910027,4.50137789,3130.5,3130.4,0.1592]
[1752621910242,3.1944936,3130.4,3130.0,0.03194888]
[1752621910405,1.307,3130.5,3130.2,0.1592]
[1752621910406,0.8758,3130.5,3130.2,0.1592]
[1752621910732,1.307,3130.5,3130.3,5.091]
[1752621910932,0.8758,3130.5,3130.3,5.091]
[1752621911235,0.002,3130.5,3130.3,5.091]
[1752621911532,0.002,3130.5,3130.4,0.19114479]
[1752621911735,0.002,3130.5,3130.4,3.38562472]
[1752621912029,0.002,3130.5,3130.4,3.84442472]
[1752621912231,0.002,3130.5,3130.4,3.38562472]
[1752621912544,0.002,3130.5,3130.4,6.84442472]
[1752621912743,0.002,3130.5,3130.4,9.37552354]
[1752621913839,0.002,3130.5,3130.4,14.46552354]
[1752621916318,0.002,3130.5,3130.4,18.15711236]
[1752621916907,0.002,3130.5,3130.4,21.15711236]
[1752621918158,1.2936,3131.4,3131.0,3.19385631]
[1752621918356,0.8239,3131.4,3131.2,3.19366377]
[1752621918553,1.2936,3131.4,3131.3,5.087]
[1752621918742,1.2936,3131.4,3131.2,5.087]
[1752621919332,1.2936,3131.4,3131.2,8.2806031]
[1752621919642,0.8239,3131.4,3131.2,5.087]
[1752621919821,0.8239,3131.4,3131.2,8.28058257]
[1752621920220,0.8426,3131.7,3131.2,6.234444]
[1752621920425,0.8426,3131.7,3131.5,3.1933456]
[1752621920717,1e-08,3131.8,3131.7,3.19315387]
[1752621920927,1e-08,3131.8,3131.7,5.087]
[1752621921327,1e-08,3131.8,3131.7,5.086]
[1752621921545,0.46970001,3131.8,3131.7,5.086]
[1752621922132,1e-08,3131.8,3131.7,9.33938532]
[1752621922332,0.002,3132.3,3131.9,3.19289202]
[1752621922554,0.002,3132.3,3132.0,3.22477292]
[1752621922760,0.002,3132.3,3132.1,5.085]
[1752621923254,0.002,3132.3,3131.9,3.19286198]
[1752621923455,3.6642897,3132.3,3132.0,5.11692848]
[1752621923661,0.4697,3132.2,3132.1,5.085]
[1752621923868,3.66241338,3132.2,3132.1,5.085]
[1752621924182,0.4697,3132.2,3132.1,5.085]
[1752621924387,0.7989,3131.9,3131.4,3.19340712]
[1752621924548,0.4697,3132.2,3131.8,3.19297371]
[1752621924871,0.4697,3132.2,3131.9,0.03192949]
[1752621925373,0.4697,3132.2,3131.9,5.11592949]
[1752621925557,3.99344514,3132.3,3131.4,1.00314071]
[1752621925558,0.8009,3132.3,3131.4,3.55214071]
[1752621925756,0.4697,3132.1,3131.5,6.40521106]
[1752621925969,3.19290324,3132.0,3131.6,3.0]
[1752621926171,0.4697,3132.0,3131.7,5.084]
[1752621926349,0.8009,3132.3,3131.8,0.03193051]
[1752621926549,0.002,3132.3,3131.9,3.35212083]
[1752621926755,0.002,3132.3,3132.2,0.1592]
[1752621926961,0.002,3132.3,3132.2,5.2432]
[1752621927282,3.19454222,3132.3,3132.2,0.1592]
[1752621927480,3.19296515,3131.9,3131.8,5.083]
[1752621927678,0.4697,3131.9,3131.8,5.083]
[1752621927894,0.002,3132.3,3131.4,3.451]
[1752621928056,0.002,3132.3,3131.9,3.19288224]
[1752621928250,0.002,3132.3,3132.2,0.1592]
[1752621929092,0.4717,3132.3,3132.2,0.1592]
[1752621929759,0.002,3132.3,3132.2,0.1592]
[1752621929962,0.002,3132.3,3132.2,4.19524777]
[1752621930561,0.002,3132.3,3132.2,11.19624777]
[1752621930884,0.002,3132.3,3132.2,9.27724777]
[1752621931247,0.002,3132.3,3132.2,13.27824777]
[1752621931452,0.002,3132.6,3132.5,3.42513838]
[1752621931684,0.9616,3133.8,3132.6,3.0]
[1752621931890,0.8024,3133.8,3133.4,0.1592]
[1752621932060,3.99347264,3133.8,3133.4,0.1592]
[1752621932262,0.4697,3133.7,3133.4,0.1592]
[1752621932451,3.99347264,3133.8,3133.5,3.19131702]